Cogmind - Beta 16.1 @@@ ROGUE MODE // 2026.04.21 @ 18:30:41 Player: Braundy Result: Destroyed by Y-45 Defender with Heavy Assault Rifle Performance ------------- Evolutions (2) 1000 Regions Visited (3) 600 Robots Destroyed (24) 120 Value Destroyed (605) 605 Prototype IDs (1) 20 Alien Tech Used (0) 0 Bonus (0) 0 TOTAL SCORE: 2345 Bonus ------- None Cogmind --------- Core Integrity 0/550 Matter 230/300 Energy 132/160 System Corruption 2% Temperature Cool (69) Movement Walking (120) Location -8/Materials Parts ------- > --- POWER (1) -------- Light Nuclear Core > --- PROPULSION (3) --- Aluminum Leg Aluminum Leg Carbon-fiber Leg > --- UTILITY (4) ------ Improved Heat Sink Large Storage Unit Structural Scanner > --- WEAPON (3) ------- Particle Gun Pulse Rifle Katana > --- INVENTORY (15) --- Light Ion Engine Light Ion Engine Aluminum Leg Aluminum Leg Cargo Storage Unit Machine Analyzer Improved Datajack Peak State ------------ > --- POWER ------------ Light Nuclear Core > --- PROPULSION ------- Aluminum Leg Aluminum Leg Carbon-fiber Leg > --- UTILITY ---------- Improved Heat Sink Small Storage Unit Large Storage Unit Structural Scanner > --- WEAPON ----------- Particle Gun Pulse Rifle Katana > --- INVENTORY -------- Light Ion Engine Light Ion Engine Aluminum Leg Aluminum Leg Cargo Storage Unit Machine Analyzer Improved Datajack [Rating: 23] Favorites ----------- Power Ion Engine Engine Ion Engine Power Core Light Nuclear Core Propulsion Armored Wheel Leg Aluminum Leg Wheel Armored Wheel Hover Unit Airjet Flight Unit Flight Unit Utility Small Storage Unit Device Terrain Scanner Storage Small Storage Unit Processor Signal Interpreter Weapon Improved Medium Laser Energy Gun Improved Medium Laser Energy Cannon EM Pulse Cannon Ballistic Gun Light Assault Rifle Slashing Weapon Katana Special Melee Weapon Improved Datajack Build | -11 -10 -10 -8 ------- Run | Yrd Mat Sub Mat Slots Evolved 4 | . . . 4 Power . | . . . . Propulsion 1 | . . . 1 Utility 2 | . . . 2 Weapon 1 | . . . 1 Parts Attached 48 | 6 6 . 36 Power 8 | 1 . . 7 Engine 6 | 1 . . 5 Core 2 | . . . 2 Reactor . | . . . . Propulsion 15 | 2 2 . 11 Treads . | . . . . Leg 5 | . . . 5 Wheel 8 | 2 2 . 4 Hover 1 | . . . 1 Flight 1 | . . . 1 Utility 10 | 1 2 . 7 Device 5 | . 1 . 4 Storage 3 | 1 . . 2 Processor 2 | . 1 . 1 Hackware . | . . . . Protection . | . . . . Artifact . | . . . . Weapon 15 | 2 2 . 11 Energy Gun 6 | . 2 . 4 Energy Cannon 1 | . . . 1 Ballistic Gun 5 | 2 . . 3 Ballistic Cannon . | . . . . Launcher . | . . . . Special Weapon . | . . . . Impact Weapon . | . . . . Slashing Weapon 1 | . . . 1 Piercing Weapon . | . . . . Special Melee Weapon 2 | . . . 2 Unidentified Prototypes 1 | . 1 . . Parts Lost 23 | . . . 23 Power 5 | . . . 5 Propulsion 8 | . . . 8 Utility 4 | . . . 4 Weapon 6 | . . . 6 Highest Loss Streak 10 | . . . 10 To Critical Strikes . | . . . . Average Backups 6 | 3 7 8 4 Power 1 | . 1 1 . Propulsion 1 | 2 3 2 . Utility 1 | . . 1 1 Weapon 1 | . 2 3 . Tool/Special . | . . . . Unused Backups 9 | . 6 . 3 Power 1 | . 1 . . Propulsion 5 | . 5 . . Utility 2 | . . . 2 Weapon . | . . . . Tool/Special 1 | . . . 1 Average Slot Usage (%) 81 | . 94 100 68 Engine 8 | . 14 14 4 Core 1 | . . . 2 Leg 2 | . . . 4 Wheel 20 | . 28 28 13 Device 10 | . 8 14 11 Storage 11 | . 14 14 8 Processor 1 | . . . 1 Energy Gun 16 | . 17 28 11 Ballistic Gun 3 | . 10 . . Slashing Weapon 1 | . . . 3 Special Melee Weapon 2 | . . . 4 Peak Build Rating 23 | 6 15 14 23 Average Rating 13 | 4 11 14 14 On Entrance 8 | . 6 14 14 Avg Prop Armor Cover (%) 18 | . . . 18 Naked Turns 2 | . . . 2 Heaviest Build 35 | 12 17 17 35 Greatest Support 36 | 26 26 24 36 Greatest Overweight (x) 7 | . . . 7 Average Overweight (x) . | . . . . Largest Inventory Capacity 15 | 8 8 8 15 Average Capacity 9 | 6 8 8 10 Most Carried 8 | 8 8 8 8 Average Carried 6 | 3 7 8 5 Final Capacity 15 | 8 8 8 15 Final Carried 8 | 8 8 8 8 Class Distribution -------------------- 89% | Mutant 8% | Scavenger-Mutant Dominant Class ---------------- Mutant | -10/Materials Mutant | -10/Subcaves Mutant | -8/Materials Resources | -11 -10 -10 -8 ----------- Run | Yrd Mat Sub Mat Matter Collected 599 | 266 60 . 273 Remotely . | . . . . Salvage Created 883 | 72 156 . 655 Parts 56 | 3 12 . 41 Haulers Intercepted . | . . . . Recyclers Shooed . | . . . . Parts Field Recycled . | . . . . Retrieved Matter . | . . . . Parts Self-Destructed 5 | . . 5 . Prevented . | . . . . Parts Restored . | . . . . Kills | -11 -10 -10 -8 ------- Run | Yrd Mat Sub Mat Combat Hostiles Destroyed 14 | . 1 . 13 Melee 4 | . . . 4 Guns 9 | . 1 . 8 Classes Destroyed 10 | 1 4 . 5 Worker 2 | . 1 . 1 Builder 4 | . 1 . 3 Recycler 2 | 1 1 . . Operator 1 | . . . 1 Watcher 1 | . 1 . . Swarmer 3 | . . . 3 Grunt 8 | . 1 . 7 Brawler 1 | . . . 1 Duelist 1 | . . . 1 Sentry 1 | . . . 1 Best Kill Streak 7 | 1 3 . 7 Combat Bots Only 6 | . 1 . 6 Max Kills in Single Turn 2 | 1 1 . 2 Gunslinging 1 | . . . 1 Exploded . | . . . . Melee 1 | . . . 1 Uniques/NPCs Destroyed . | . . . . Combat | -11 -10 -10 -8 -------- Run | Yrd Mat Sub Mat Hostile Shots Fired 160 | . . 22 138 Missed 51 | . . 8 43 Hits 109 | . . 14 95 Melee 3 | . . . 3 Projectile 106 | . . 14 92 Critical Strikes 9 | . . . 9 Damage Taken 2180 | . . 109 2071 Core 574 | . . 15 559 Absorbed by Shields . | . . . . Core Remaining (%) 97 | 100 . 94 . Volleys Fired 54 | 3 10 2 39 Largest 3 | 2 2 2 3 Hottest 168 | 40 112 112 168 Shots Fired 109 | 6 20 4 79 Gun 107 | 6 20 4 77 Cannon 2 | . . . 2 Launcher . | . . . . Special . | . . . . Kinetic 16 | 6 . . 10 Thermal 91 | . 20 4 67 Explosive . | . . . . Electromagnetic 2 | . . . 2 Robot Hit Streak 11 | 3 6 4 11 Robot Miss Streak 4 | 2 2 . 4 Penetration Max . | . . . . Secondary Targets 4 | . . . 4 Max Gunslinging Chain 1 | . . . 1 Shots Hit Robots 82 | 3 9 2 68 Core Hits 34 | 2 5 . 27 Critical Kills . | . . . . Critical Parts Destroyed . | . . . . Critical Strikes 9 | . 2 1 6 Burn 9 | . 2 1 6 Melee Attacks 15 | . . . 15 Impact . | . . . . Slashing 12 | . . . 12 Piercing . | . . . . Sneak Attacks 3 | . . . 3 Combat Hostiles . | . . . . Follow-up Attacks . | . . . . Damage Inflicted 1463 | 29 101 35 1298 Guns 1077 | 29 101 35 912 Cannons 23 | . . . 23 Explosions . | . . . . Melee 363 | . . . 363 Ramming . | . . . . Kinetic 121 | 29 . . 92 Thermal 956 | . 101 35 820 Explosive . | . . . . Electromagnetic 23 | . . . 23 Impact . | . . . . Slashing 363 | . . . 363 Piercing . | . . . . Highest Corruption 2 | . . . 2 Average Corruption 1 | . . . 1 Corruption Purged . | . . . . Corruption Blocked . | . . . . Effects 2 | . . . 2 Matter Fused 1 | . . . 1 Data Loss (minor) 1 | . . . 1 Overload Shots . | . . . . Overflow Damage 32 | . . . 32 Projectiles . | . . . . Explosions . | . . . . Melee 32 | . . . 32 Knockbacks . | . . . . Impact . | . . . . Kinetic . | . . . . Secondary . | . . . . Self-Inflicted Damage . | . . . . Shots . | . . . . Rammed . | . . . . Targets Rammed . | . . . . Kicked . | . . . . Crushed . | . . . . Highest Temperature 378 | . 153 . 378 Average Temperature 122 | . 67 . 150 Received Heat Transfer 594 | . . . 594 Effects 1 | . . . 1 Shutdowns 1 | . . . 1 Siege Activations . | . . . . Martial Activations . | . . . . Shielding Activations . | . . . . Robots Disrupted . | . . . . Combat Hostiles . | . . . . Robots Corrupted . | . . . . Combat Hostiles . | . . . . Parts Fried . | . . . . Impact Corruptions . | . . . . Robots Melted 1 | . . . 1 Combat Hostiles 1 | . . . 1 Parts Melted 9 | . 2 . 7 Heat Transferred 2775 | . 370 148 2257 Parts Sabotaged . | . . . . Parts Stolen . | . . . . Parts Stripped . | . . . . Power Chain Reactions . | . . . . Alert | -11 -10 -10 -8 ------- Run | Yrd Mat Sub Mat Maximum Alert Level . | . . . . Low Security (%) 100 | 100 100 . 100 Level 1 . | . . . . Level 2 . | . . . . Level 3 . | . . . . Level 4 . | . . . . Level 5 . | . . . . High Security . | . . . . Max Security . | . . . . Peak Influence 165 | 5 55 . 165 Initial . | . . . . Average 42 | 1 9 . 64 Influence Increases 609 | 5 88 . 516 Destroy 0b10 Robot/C 280 | . 20 . 260 Destroy 0b10 Robot/NC 50 | 5 20 . 25 Destroy Leader 72 | . 12 . 60 Successful Hack 11 | . 6 . 5 Disable Machine 15 | . 15 . . Destroy Structure 1 | . . . 1 Lose Combat Pursuer 180 | . 15 . 165 Influence Decreases 457 | 5 63 25 364 Entered New Map 13 | . . 13 . Time Decay 254 | 5 63 12 174 Lost Part 190 | . . . 190 Squads Dispatched 6 | . 2 . 4 Investigation 1 | . . . 1 Extermination . | . . . . Reinforcement 5 | . 2 . 3 Assault . | . . . . Garrison . | . . . . Intercept . | . . . . Searches Triggered . | . . . . Construction Impeded . | . . . . Haulers Reinforced . | . . . . Active Scanning Responses . | . . . . Cargo Convoy Interrupts . | . . . . Stealth | -11 -10 -10 -8 --------- Run | Yrd Mat Sub Mat Distress Signals 1 | . 1 . . Communications Jammed . | . . . . Distress Signals . | . . . . Times Spotted 38 | . 6 3 29 Peak Tracking Total 9 | . 2 3 9 Tactical Retreats 7 | . 1 . 6 Traps | -11 -10 -10 -8 ------- Run | Yrd Mat Sub Mat Traps Triggered 1 | . . . 1 Indirectly . | . . . . Trap Hack Attempts . | . . . . Triggered . | . . . . Disarmed . | . . . . Reprogrammed . | . . . . Reused . | . . . . Traps Extracted . | . . . . Installed . | . . . . Triggered . | . . . . Machines | -11 -10 -10 -8 ---------- Run | Yrd Mat Sub Mat Machines Disabled 1 | . 1 . . Max in Single Turn 1 | . 1 . . Machines Repaired . | . . . . Machines Dismantled . | . . . . Machines Sabotaged . | . . . . Overloaded Fab Kills . | . . . . Hacking | -11 -10 -10 -8 --------- Run | Yrd Mat Sub Mat Machines Accessed 3 | . 2 . 1 Terminals 3 | . 2 . 1 Fabricators . | . . . . Repair Stations . | . . . . Recycling Units . | . . . . Scanalyzers . | . . . . Garrison Access . | . . . . Total Hacks 8 | . 4 . 4 Successful 3 | . 1 . 2 Failed 5 | . 3 . 2 Catastrophic 1 | . 1 . . Database Lockouts . | . . . . Manual 4 | . 4 . . Terminals 8 | . 4 . 4 Fabricators . | . . . . Repair Stations . | . . . . Recycling Units . | . . . . Scanalyzers . | . . . . Garrison Access . | . . . . Terminal Hacks 3 | . 1 . 2 Terminal Index 1 | . 1 . . Alert Level 1 | . . . 1 Investigation Status 1 | . . . 1 Fabricator Hacks . | . . . . Repair Station Hacks . | . . . . Recycling Unit Hacks . | . . . . Scanalyzer . | . . . . Garrison Access Hacks . | . . . . Unauthorized Hacks . | . . . . Terminals . | . . . . Fabricators . | . . . . Repair Stations . | . . . . Recycling Units . | . . . . Scanalyzers . | . . . . Garrison Access . | . . . . Data Cores Recovered . | . . . . Used . | . . . . Hacking Detections 3 | . 2 . 1 Full Trace Events 2 | . 1 . 1 Feedback Events 1 | . . . 1 Corruption 1 | . . . 1 Feedback Blocked . | . . . . Robot Schematics Acquired . | . . . . Robots Built . | . . . . Authchips . | . . . . Time . | . . . . Total Robot Build Rating . | . . . . Part Schematics Acquired . | . . . . Parts Built . | . . . . Authchips . | . . . . Time . | . . . . Total Part Build Rating . | . . . . Part Studies Acquired . | . . . . Parts Repaired . | . . . . Time . | . . . . Parts Recycled . | . . . . Recycled Matter . | . . . . Retrieved Matter . | . . . . Retrieved Components . | . . . . Parts Scanalyzed . | . . . . Part Schematics Acquired . | . . . . Parts Damaged . | . . . . Bothacking | -11 -10 -10 -8 ------------ Run | Yrd Mat Sub Mat Used RIF Installer . | . . . . Robots Hacked 3 | . . . 3 Non-combat 2 | . . . 2 Combat 1 | . . . 1 Robot Hacks Applied 3 | . . . 3 parse_system 1 | . . . 1 no_distress 2 | . . . 2 Relay Couplers Released . | . . . . Fabnet Peak Effective % . | . . . . Robots Rewired . | . . . . Allies Hacked . | . . . . Hacks Repelled . | . . . . Allies | -11 -10 -10 -8 -------- Run | Yrd Mat Sub Mat Total Allies . | . . . . Largest Group . | . . . . Highest-Rated Group . | . . . . Highest-Rated Ally . | . . . . Total Orders . | . . . . Ally Attacks . | . . . . Total Damage . | . . . . Kills . | . . . . Allies Corrupted . | . . . . Allies Melted . | . . . . Intel | -11 -10 -10 -8 ------- Run | Yrd Mat Sub Mat Active Infowar (turns) 814 | . 211 214 389 Optics 24 | . 24 . . Terrain 490 | . 187 214 89 Structural 300 | . . . 300 Robot Analysis Total . | . . . . Derelict Logs Recovered 1 | . . 1 . Drone Launches . | . . . . Drone Recoveries . | . . . . Exploration | -11 -10 -10 -8 ------------- Run | Yrd Mat Sub Mat Turns Passed 1193 | 58 315 214 606 Spaces Moved 808 | 36 177 218 377 Core 30 | 1 . . 29 Treads . | . . . . Legs 79 | . . . 79 Wheels 650 | 35 177 218 220 Hover 28 | . . . 28 Flight 21 | . . . 21 Fastest Speed 45 | 50 85 90 45 Average Speed 94 | 89 89 90 100 Slowest Speed 400 | 100 90 90 400 Overloaded Moves . | . . . . Propulsion Burnouts . | . . . . Robots Hopped . | . . . . Potential Cave-ins . | . . . . Cave-ins Triggered . | . . . . Exploration Rate (%) 17 | 3 18 18 32 Regions Visited 3 Branch Regions 1 Pre-discovered Areas 1 | . . 1 . Known Exits Taken . | . . . . Unknown Exits Taken 3 | 1 1 1 . Scrap Searched . | . . . . Spaces Dug . | . . . . Terrain Destroyed . | . . . . Melee . | . . . . Projectile . | . . . . AOE . | . . . . Terrain Rammed . | . . . . Walls Destroyed . | . . . . Machines Disabled . | . . . . Actions | -11 -10 -10 -8 --------- Run | Yrd Mat Sub Mat Total 1108 | 54 316 231 507 Wait 146 | . 105 12 29 Move 805 | 35 176 217 377 Hop . | . . . . Pick Up 21 | 10 8 . 3 Fast Attach 29 | 4 2 . 23 Attach 10 | 2 . . 8 Detach . | . . . . Swap 12 | . 4 . 8 Drop 16 | . 11 . 5 Fire 54 | 3 10 2 39 Melee 15 | . . . 15 Ram . | . . . . Kick . | . . . . Crush . | . . . . Escape Stasis . | . . . . Rewire . | . . . . Trap . | . . . . Miscellaneous . | . . . . Route ------- -11/Scrapyard -10/Materials -10/Subcaves -8/Materials (discovered 1 exit: [*Fac]) History --------- Turn | Location | Event 36 | -11/Scrapyard | Discovered new exit (range 15) 59 | -11/Scrapyard | Entered Materials 230 | -10/Materials | Discovered new exit (range 8) 303 | -10/Materials | Build established: Mutant 374 | -10/Materials | Entered Subcaves 375 | -10/Subcaves | Approached by a straggling Scientist 392 | -10/Subcaves | Learned location of Mines (-9) 428 | -10/Subcaves | A swath of the cavern ceiling suddenly collapsed 572 | -10/Subcaves | Discovered new exit (range 14) 588 | -10/Subcaves | Entered Materials 588 | -8/Materials | Evolved 4 slots: Propulsion x1, Utility x2, Weapon x1 815 | -8/Materials | Lost 8 parts (2p1n2u3w) 844 | -8/Materials | Core integrity fell below 50% 909 | -8/Materials | Lost 10 parts (1p5n1u3w) 910 | -8/Materials | Core integrity fell below 20% 1041 | -8/Materials | Lost 3 parts (1p1n1u) 1184 | -8/Materials | Discovered new exit (range 16) 1194 | -8/Materials | Garrison activated, responded to threat 1194 | -8/Materials | Destroyed by Y-45 Defender with Heavy Assault Rifle Last Messages --------------- 01173_ Acquired Lrg. Storage Unit. 01174_ Dropped Sml. Storage Unit. 01176_ Connecting with Terminal... 01176_ Current location identified: Materials >>Alert(Check) Current Alert Level: Low Security >>Enumerate(Investigations) Retrieving latest reported positions... No active investigation squads found. Feedback: System corruption (+1%). 01176_ ALERT: Suspicious activity at Terminal M001. Dispatching Investigation squad. 01184_ EXIT=FOUND 01191_ G-47 Trooper suffers critical hit (Burn). 01191_ Lgt. Nuclear Core melted. 01191_ G-47 Trooper destroyed. 01194_ G-47 Trooper calls for garrison reinforcements. 01194_ ALERT: Activating Garrison Access M001. 01194_ Critical hit (Burn: +37). Map ----- +----------------------------------------------------+ | | | | | | | | | | | | | | | | | | | | | | | | | | | ???????????????????????####################??????? | | ???????????????????????## ############??????? | | ???????????????????????## """ ## ##??????? | | ???????????????????????## "T" ## """##??????? | | ???????????????????????## ## """##??????? | | ??????????????????????? # ! ## """##??????? | | ??????????????????????? # ##/ ##??????? | | ??????????????????????? # """ ## """##??????? | | ??????????????????????? # """ ## """##??????? | | ??????????????????????? # """ ## """##??????? | | ???????????????? # # ## ######### | | ?????????###????#####+######+########/############ | | ?????????## @ + | | ?????????## < [% # | | ?????????## u g # | | ?????????######## #####Y####### # | | ??????????####### #### ## # | | ???????????????##! ?????? ??## # | | ???????????????###!!!??????? """ ?## ###+####### | | ???????????????######??????? """ ## | | ????????????????#####??????? """ ## | | ????????????????????????????? ?? ## | | ????????????????????????????? ??? ########+####### | | ????????????????????????????? ??? ##### ### | | ????????????????????????????? ??????????????????## | | ????????????????????????????????????????????????## | | ????????????????????????????????????????????????## | | ????????????????????????????????????????????????## | | ????????????????????????????????????????????????## | | ????????????????????????????????????????????????## | | ????????????????????????????????????????????????## | | ?????????????????????????????????????????? ### | | ??????????????????????????????????????????##/##### | | ?????????????????????????????????????? | | ?????????????????????????????????????? | | ????????????????????????????????????? | | ?????????????????????????????????????##/########## | +----------------------------------------------------+ Best States ------------- Heat Dissipation 45 Energy Generation 14 Energy Capacity 250 Matter Stores 300 Matter Capacity 300 Sight Range 18 Terrain Scan Range 14 Terrain Scan Density 10 Evasion (%) 61 Item Schematics ----------------- None Robot Schematics ------------------ None Fabricated ------------ Nothing Repaired ---------- Nothing Studied --------- None Alien Tech Used ----------------- None Achievements -------------- None Challenges ------------ None Game ------ Seed PointyRecoilCycler Manual? 0 Play Time 00:19:08 Cumulative 12.5 hours Start 2026.04.21 @ 18:13:26 End 2026.04.21 @ 18:30:41 Sessions 1 Manual Loads 0 Difficulty Rogue Special Mode None Game No. 21 Rogue 20 Adventurer 1 Explorer 0 Win Type - Total 0 Types 0/0/0/0/0/0/0/0/0/0 Lore% 20 Gallery% 15 Achievement% 12 Wizard Run 0 Options --------- Layout 1 ASCII 0 Keyboard 0 Movement Mouse Keybinds 0 Fullscreen 1 Font 24/Smallcaps Map View 50x35 Zoom Use 0% Tactical HUD 1 Map Filters NONE Filters NONE Steam 1 RUN: 29ab9bb0-2278-49ea-9dc5-45878f27acd4